bitfinex-derivatives/quotes_ETHF0:USTF0_20210705
["timestamp","ask_amount","ask_price","bid_price","bid_amount"]
[1625453909478,1.29528621,2254.4,2254.2,24.129669]
[1625453909980,1.2952981,2254.5,2254.2,24.129669]
[1625453910381,2.2952981,2254.5,2254.2,24.129669]
[1625453910482,2.2952981,2254.5,2254.2,11.552769]
[1625453910580,2.2952981,2254.5,2253.7,1.3104861]
[1625453910682,1.29535587,2254.4,2253.7,1.3104861]
[1625453910789,1.0,2254.3,2253.7,1.3104861]
[1625453910883,1.8921,2254.3,2253.7,1.3104861]
[1625453910982,47.95140367,2253.8,2253.1,1.31021943]
[1625453911081,1.0,2253.7,2253.1,1.31021943]
[1625453911183,4.41054,2253.2,2253.1,1.31021943]
[1625453911735,4.41054,2253.2,2252.9,3.51553951]
[1625453912137,4.41054,2253.2,2253.0,17.55612867]
[1625453917812,4.41054,2253.2,2253.1,1.31029055]
[1625453918113,4.41054,2253.2,2253.1,17.47569555]
[1625453918669,4.41054,2253.2,2253.1,64.910505]
[1625453919525,1.0,2253.7,2253.1,64.910505]
[1625453920280,1.0,2253.7,2253.1,66.2207887]
[1625453920580,2.29237795,2253.7,2253.1,64.910505]
[1625453921180,2.29237795,2253.7,2253.1,16.165405]
[1625453921383,2.20527,2253.5,2253.4,2.20527]
[1625453921483,3.20527,2253.5,2253.4,2.20527]
[1625453921683,3.20527,2253.5,2253.4,18.245813]
[1625453921884,1.0,2253.5,2253.4,18.245813]
[1625453923110,1.29271682,2253.9,2253.4,18.245813]
[1625453923310,1.29271682,2253.9,2253.8,2.20527]
[1625453923569,1.29271682,2253.9,2253.8,56.95967]
[1625453923668,1.29271682,2253.9,2253.8,73.082018]
[1625453923765,4.01507355,2254.0,2253.8,73.082018]
[1625453923766,2.20527,2254.0,2253.8,73.082018]
[1625453924368,2.20527,2254.2,2253.8,73.082018]
[1625453924922,2.20527,2254.2,2253.8,74.39188639]
[1625453925321,2.20527,2254.2,2254.1,2.20527]
[1625453925623,2.20527,2254.2,2254.1,18.23991]
[1625453925724,2.20527,2254.2,2254.1,21.53181]
[1625453927336,1.68527,2254.2,2254.1,21.53181]
[1625453927435,2.20527,2254.5,2254.1,21.53181]
[1625453927887,1.40527,2254.5,2254.1,21.53181]
[1625453929341,1.40527,2254.5,2254.4,2.20527]
[1625453929643,1.40527,2254.5,2254.4,18.177348]
[1625453934249,2.20527,2254.9,2254.4,18.177348]
[1625453935367,2.20527,2254.9,2254.8,2.20527]
[1625453935467,2.20527,2254.9,2254.8,5.22567]
[1625453935666,2.20527,2254.9,2254.8,21.460121]
[1625453936285,3.20527,2254.9,2254.8,21.460121]
[1625453936371,3.20527,2254.9,2254.8,19.254851]
[1625453936470,3.20527,2254.9,2254.8,3.0204]
[1625453936573,3.20527,2254.9,2254.4,2.20527]
[1625453936871,37.319,2254.5,2254.4,2.20527]
[1625453936971,38.319,2254.5,2254.4,2.20527]
[1625453937185,1.0,2254.5,2254.4,2.20527]
[1625453937385,3.20527,2254.5,2254.4,2.20527]
[1625453941647,1.0,2254.5,2254.4,2.20527]
[1625453943399,3.20527,2254.5,2254.4,2.20527]
[1625453943799,3.20527,2254.5,2254.4,18.362257]
[1625453944149,1.0,2254.5,2254.4,18.362257]
[1625453945404,3.20527,2254.5,2254.4,18.362257]
[1625453947914,2.20527,2254.5,2254.4,18.362257]
[1625453948765,2.20527,2254.9,2254.4,18.362257]
[1625453948867,2.20527,2254.9,2254.4,21.910057]
[1625453949067,1.0,2254.8,2254.4,21.910057]
[1625453949467,2.20527,2254.5,2254.4,21.910057]
[1625453949567,3.20527,2254.5,2254.4,21.910057]
[1625453950622,3.20527,2254.5,2254.4,18.362257]
[1625453955868,3.20527,2254.5,2254.4,2.20527]
[1625453964048,3.20527,2254.5,2253.1,2.18344352]
[1625453964148,3.20527,2254.5,2253.1,1.30424352]
[1625453964545,3.20527,2254.5,2252.2,5.21697409]
[1625453964546,3.20527,2254.5,2253.0,13.872]
[1625453964849,3.20527,2254.5,2253.2,16.132611]
[1625453965150,3.20527,2254.5,2253.1,17.055971]
[1625453965250,3.20527,2254.5,2253.0,15.17635537]
[1625453965451,3.20527,2254.5,2253.3,16.082189]
[1625453965654,2.20527,2253.8,2253.7,2.20527]
[1625453965755,3.20527,2253.8,2253.7,2.20527]
[1625453967708,5.41054,2253.8,2253.7,2.20527]
[1625453976243,4.41054,2253.8,2253.7,2.20527]
[1625453976595,4.41054,2253.8,2253.7,5.58627]
[1625453977349,4.41054,2253.8,2253.7,21.664906]
[1625453980669,1.0,2254.6,2253.7,21.664906]
[1625453981479,1.0,2254.8,2253.7,21.664906]
[1625453981578,1.0,2254.5,2253.7,21.664906]
[1625453981731,3.20527,2254.5,2254.4,2.20527]
[1625453982156,3.20527,2254.5,2254.4,18.227982]
[1625453983743,5.41054,2254.5,2254.4,18.227982]
[1625453989107,5.41054,2254.5,2254.4,20.977882]
[1625453989506,1.0,2254.5,2254.4,20.977882]
[1625453989613,3.409,2254.9,2254.4,20.977882]
[1625453989711,1.78048536,2255.2,2254.4,21.977882]
[1625453989817,1.78048536,2255.2,2255.1,4.41054]
[1625453989913,1.78048536,2255.2,2255.1,8.67134]
[1625453990213,1.78048536,2255.2,2255.1,24.693993]
[1625453990411,2.20527,2255.4,2255.1,24.693993]
[1625453990511,2.20527,2255.4,2255.1,72.267693]
[1625453991826,2.59881886,2256.4,2255.1,72.267693]
[1625453991928,2.59816215,2256.5,2255.1,73.164593]
[1625453992334,14.4816,2256.6,2255.1,73.164593]
[1625453992837,14.4816,2256.6,2255.1,78.164593]
[1625453993036,2.59963026,2256.8,2255.1,78.164593]
[1625453993136,2.59963026,2256.8,2255.2,0.13121326]
[1625453993436,2.59963026,2256.8,2255.3,16.025233]
[1625453993638,2.59963026,2256.8,2255.4,1.0]
[1625453993787,2.20527,2256.3,2256.2,2.20527]
[1625453993888,1.20527,2256.3,2256.2,5.85997]
[1625453994090,1.20527,2256.3,2256.2,21.911596]
[1625453994389,1.20527,2256.3,2256.2,75.336296]
[1625453995493,2.59923781,2257.1,2256.2,75.336296]
[1625453995595,3.0951,2257.6,2256.2,75.336296]
[1625453995596,2.59889591,2257.0,2256.2,75.336296]
[1625453995849,2.20527,2256.7,2256.5,2.20527]
[1625453997808,2.20527,2256.7,2256.6,2.20527]
[1625454000664,3.20527,2256.7,2256.6,2.20527]
[1625454001420,3.20527,2256.7,2254.4,4.27140587]
[1625454001522,6.25547,2256.7,2254.4,4.27140587]
[1625454001819,4.41054,2255.0,2254.8,2.20527]
[1625454001920,5.41054,2255.0,2254.8,2.20527]
[1625454002221,5.41054,2255.0,2254.6,2.20527]
[1625454002421,44.57954,2255.0,2254.6,2.20527]
[1625454003272,44.57954,2255.0,2253.4,2.60591351]
[1625454003725,44.57954,2255.0,2253.3,15.0344]
[1625454003824,44.57954,2255.0,2254.0,2.20527]
[1625454004891,47.87124,2255.0,2254.0,2.20527]
[1625454005388,52.87124,2255.0,2254.0,2.20527]
[1625454005841,4.41054,2254.1,2254.0,2.20527]
[1625454005940,8.55374,2254.1,2254.0,2.20527]
[1625454006893,8.55374,2254.1,2252.6,51.9348]
[1625454006991,8.55374,2254.1,2252.5,2.60773554]
[1625454007592,8.55374,2254.1,2252.6,16.151126]
[1625454007895,2.20527,2253.2,2253.1,2.20527]
[1625454007992,5.91247,2253.2,2253.1,2.20527]
[1625454008343,5.91247,2253.2,2252.9,2.20527]
[1625454008444,43.9015,2253.0,2252.9,2.20527]
[1625454008545,44.9015,2253.0,2252.9,2.20527]
[1625454009246,44.9015,2253.0,2251.9,2.60809106]
[1625454009496,44.9015,2253.0,2251.8,2.60853601]
[1625454009848,2.20527,2252.5,2252.4,2.20527]
[1625454009948,6.48887,2252.5,2252.4,2.20527]
[1625454011911,8.69414,2252.5,2252.4,2.20527]
[1625454012117,8.69414,2252.5,2251.1,2.60829507]
[1625454012423,8.69414,2252.5,2250.9,2.60692542]
[1625454012774,8.69414,2252.5,2250.9,18.73320142]
[1625454013024,8.69414,2252.5,2251.0,0.13142536]
[1625454013327,8.69414,2252.5,2251.0,16.34235236]
[1625454013426,8.69414,2252.5,2251.0,16.210927]
[1625454013876,2.20527,2251.4,2251.3,2.20527]
[1625454013978,6.79697,2251.4,2251.3,2.20527]
[1625454014176,6.79697,2251.4,2251.3,18.356907]
[1625454015532,6.79697,2251.4,2251.3,19.235607]
[1625454015632,6.79697,2251.4,2251.3,18.356907]
[1625454015940,9.00224,2251.4,2251.3,18.356907]
[1625454016039,9.00224,2251.4,2251.3,2.20527]
[1625454019899,9.00224,2251.4,2250.6,2.20527]
[1625454020599,9.00224,2251.4,2250.7,15.997286]
[1625454021950,6.79697,2251.4,2250.9,2.20527]
[1625454022351,6.79697,2251.4,2251.0,16.201448]
[1625454023903,2.20527,2251.1,2251.0,16.201448]
[1625454027359,0.8783,2252.3,2251.0,16.201448]
[1625454027460,0.8783,2252.3,2251.0,18.899348]
[1625454027562,1.0,2252.4,2251.0,18.899348]
[1625454028013,2.20527,2251.5,2251.2,2.20527]
[1625454028111,2.20527,2251.7,2251.2,2.20527]
[1625454028215,2.55999827,2253.7,2251.2,3.10527]
[1625454028314,1.0,2253.2,2251.2,3.10527]
[1625454028413,1.0,2253.2,2251.3,16.112783]
[1625454029015,2.56218029,2254.3,2251.3,16.112783]
[1625454029215,2.5636393,2254.7,2251.3,16.112783]
[1625454029718,60.4034,2254.9,2252.3,47.1487]
[1625454029817,60.4034,2254.9,2252.3,3.4998]
[1625454030017,2.20527,2253.0,2252.9,2.20527]
[1625454030419,46.40177,2253.0,2252.9,2.20527]
[1625454030721,46.40177,2253.0,2251.0,0.8987]
[1625454030818,46.40177,2253.0,2250.5,14.0561]
[1625454030930,46.40177,2253.0,2250.5,18.8151]
[1625454031319,47.29837,2253.0,2250.5,18.8151]
[1625454031420,1.0,2252.9,2250.6,16.088171]
[1625454032024,2.20527,2251.4,2251.3,2.20527]
[1625454032326,2.20527,2251.6,2251.4,16.134782]
[1625454032637,2.20527,2251.6,2251.3,18.418921]
[1625454032827,2.20527,2251.6,2251.3,2.20527]
[1625454032928,2.20527,2251.6,2251.4,16.199176]
[1625454033528,1.0,2252.9,2251.4,16.199176]
[1625454033630,1.0,2252.9,2251.4,18.480876]
[1625454034032,1.0,2252.9,2252.2,2.20527]
[1625454034033,2.20527,2252.5,2252.2,2.20527]
[1625454034134,1.0,2252.4,2252.2,2.20527]
[1625454034432,2.20527,2252.5,2252.3,16.219149]
[1625454035987,2.20527,2252.5,2252.4,2.20527]
[1625454036292,2.20527,2252.5,2252.4,18.448651]
[1625454037547,2.20527,2252.5,2252.4,57.036751]
[1625454038952,2.20527,2252.5,2252.4,18.448651]
[1625454039558,1.0,2253.5,2252.4,18.448651]
[1625454039653,1.0,2253.5,2252.5,44.8156]
[1625454039955,1.0,2253.5,2252.6,16.099537]
[1625454040055,2.20527,2253.3,2252.8,2.20527]
[1625454040154,3.20527,2253.3,2252.8,2.20527]
[1625454040256,2.20527,2253.3,2252.8,2.20527]
[1625454040360,2.20527,2253.3,2252.9,16.132754]
[1625454042012,2.20527,2253.3,2253.2,2.20527]
[1625454042326,2.20527,2253.3,2253.2,18.321947]
[1625454042428,2.20527,2253.3,2253.2,21.870347]
[1625454042728,3.20527,2253.5,2253.2,21.870347]
[1625454044030,3.20527,2253.5,2253.3,2.20527]
[1625454044332,3.20527,2253.5,2253.4,16.046514]
[1625454045591,3.20527,2253.5,2253.3,2.20527]
[1625454045794,6.38027,2253.5,2253.3,2.20527]
[1625454045894,6.38027,2253.5,2251.3,5.0]
[1625454046093,2.20527,2253.0,2252.7,2.20527]
[1625454046207,4.88567,2253.0,2252.7,2.20527]
[1625454046499,5.88567,2253.0,2252.8,16.166179]
[1625454047268,5.88567,2253.0,2252.7,2.20527]
[1625454047353,5.88567,2253.0,2252.5,2.20527]
[1625454047703,49.1169,2252.8,2252.5,2.20527]
[1625454047806,1.0,2252.7,2250.3,0.895]
[1625454048214,5.78497,2251.6,2251.5,2.20527]
[1625454048305,6.78497,2251.6,2249.8,14.1282]
[1625454048515,6.78497,2251.6,2250.6,16.039639]
[1625454050109,2.20527,2250.7,2250.6,18.244909]
[1625454050319,5.71057,2250.7,2250.6,18.244909]
[1625454050524,6.71057,2250.7,2250.6,18.244909]
[1625454050963,6.71057,2250.7,2250.6,16.039639]
[1625454051865,59.47287,2250.7,2250.6,16.039639]
[1625454052165,59.47287,2250.7,2250.0,2.20527]
[1625454052615,59.47287,2250.7,2248.5,4.759]
[1625454053117,59.47287,2250.7,2248.3,29.2258]
[1625454053316,64.47287,2250.7,2248.6,16.254112]
[1625454053517,64.47287,2250.7,2248.4,16.171655]
[1625454053919,64.47287,2250.7,2248.7,16.053772]
[1625454054121,2.20527,2249.4,2249.3,2.20527]
[1625454054221,3.20527,2249.4,2249.3,2.20527]
[1625454054969,1.0,2249.4,2249.3,2.20527]
[1625454055073,0.8809,2251.4,2249.3,2.20527]
[1625454055173,0.8809,2251.4,2249.3,20.904175]
[1625454055174,1.0,2251.4,2249.3,20.904175]
[1625454056030,6.0,2251.4,2249.3,20.904175]
[1625454056138,4.41054,2249.4,2249.3,20.904175]
[1625454058107,5.41054,2249.4,2249.3,20.904175]
[1625454058756,5.41054,2249.4,2249.3,4.69777]
[1625454058855,5.41054,2249.4,2249.3,2.20527]
[1625454060362,5.41054,2249.4,2249.1,2.20527]
[1625454060762,60.31484,2249.4,2249.1,2.20527]
[1625454060863,5.41054,2249.4,2249.1,2.20527]
[1625454061864,2.20527,2249.4,2249.1,2.20527]
[1625454062167,2.20527,2249.4,2249.3,2.20527]
[1625454062266,2.20527,2249.4,2249.3,4.54737]
[1625454062467,2.20527,2249.4,2249.3,20.629079]
[1625454063869,2.20527,2249.4,2249.3,4.54737]
[1625454064020,3.20527,2249.4,2249.3,4.54737]
[1625454064373,2.20527,2249.8,2249.3,4.54737]
[1625454064479,20.1705,2251.5,2249.3,4.54737]
[1625454064579,19.2928,2251.5,2249.3,20.59186]
[1625454065028,19.2928,2251.5,2249.3,4.54737]
[1625454065378,19.2928,2251.5,2249.4,16.053128]
[1625454065478,1.0,2251.4,2249.4,16.053128]
[1625454066181,2.20527,2250.2,2250.1,2.20527]
[1625454066282,3.20527,2250.2,2250.1,2.20527]
[1625454067334,2.20527,2250.2,2250.1,2.20527]
[1625454067946,2.20527,2250.2,2250.1,18.397308]
[1625454068146,14.2928,2251.5,2250.1,21.499808]
[1625454068247,2.20527,2250.8,2250.1,21.499808]
[1625454068445,3.20527,2250.8,2250.1,21.499808]
[1625454069557,2.20527,2250.8,2250.1,21.499808]
[1625454070256,2.20527,2250.8,2250.6,2.20527]
[1625454070357,14.2928,2251.5,2250.6,2.20527]
[1625454070457,14.2928,2251.5,2250.6,5.87317]
[1625454070557,14.2928,2251.5,2250.7,16.093311]
[1625454070658,1.0,2251.4,2250.7,16.093311]
[1625454070858,1.0,2251.4,2250.6,2.20527]
[1625454071961,1.0,2251.4,2250.7,16.237744]
[1625454072061,1.0,2251.4,2250.7,19.617544]
[1625454072266,2.20527,2250.8,2250.7,19.617544]
[1625454075923,1.0,2251.3,2250.7,19.617544]
[1625454076033,1.1,2253.3,2250.7,19.617544]
[1625454076120,1.0,2252.6,2250.7,19.617544]
[1625454076325,2.20527,2251.5,2251.3,2.20527]
[1625454076421,2.20527,2251.5,2251.3,5.91007]
[1625454076724,2.20527,2251.5,2251.4,16.255593]
[1625454077871,3.20527,2251.5,2251.4,16.255593]
[1625454077974,3.20527,2251.5,2251.3,2.20527]
[1625454078173,2.20527,2251.5,2251.3,2.20527]
[1625454079777,2.20527,2251.5,2251.4,16.001779]
[1625454080878,1.0,2252.4,2251.4,16.001779]
[1625454082328,2.20527,2252.2,2252.1,2.20527]
[1625454082430,3.20527,2252.2,2252.1,2.20527]
[1625454083133,2.20527,2252.2,2252.1,2.20527]
[1625454084284,4.41054,2252.2,2252.1,2.20527]
[1625454085537,1.0,2252.8,2252.1,2.20527]
[1625454085538,1.0,2252.8,2252.1,18.320277]
[1625454085643,1.0,2252.8,2252.1,21.213677]
[1625454086348,2.20527,2252.7,2252.6,2.20527]
[1625454086447,2.20527,2252.7,2252.6,5.85097]
[1625454086658,3.20527,2252.7,2252.6,5.85097]
[1625454088070,2.20527,2252.7,2252.6,5.85097]
[1625454088271,3.20527,2252.7,2252.6,5.85097]
[1625454088372,5.41054,2252.7,2252.6,3.6457]
[1625454088473,5.41054,2252.7,2252.1,2.20527]
[1625454088675,8.48884,2252.7,2252.1,2.20527]
[1625454089077,9.38154,2252.7,2249.4,2.59143881]
[1625454089175,8.48884,2252.7,2249.4,2.59143881]
[1625454089477,8.48884,2252.7,2250.3,44.0065]
[1625454089779,8.48884,2252.7,2250.4,16.074452]
[1625454090379,2.20527,2251.4,2251.3,2.20527]
[1625454090578,5.69797,2251.4,2251.3,2.20527]
[1625454092332,7.90324,2251.4,2251.3,2.20527]
[1625454092781,3.4927,2251.4,2251.3,2.20527]
[1625454092984,14.5591,2253.2,2251.3,2.20527]
[1625454093081,14.5591,2253.2,2251.3,5.24127]
[1625454093184,14.5591,2253.2,2251.3,21.451584]
[1625454093433,1.0,2253.1,2251.3,21.451584]
[1625454094387,2.20527,2252.6,2252.1,2.20527]
[1625454094488,1.0,2252.5,2252.1,2.20527]
[1625454096398,2.20527,2252.2,2252.1,2.20527]
[1625454096851,1.0,2252.5,2252.1,2.20527]
[1625454098361,2.20527,2252.2,2252.1,2.20527]
[1625454098462,2.20527,2252.2,2250.3,0.8771]
[1625454098463,6.04187,2252.2,2250.3,0.8771]
[1625454098861,46.8698,2251.8,2250.3,0.8771]
[1625454098961,1.0,2251.7,2250.3,0.8771]
[1625454099061,3.9248,2251.7,2249.7,9.01816413]
[1625454099165,3.9248,2251.7,2250.4,16.197591]
[1625454099462,3.9248,2251.7,2250.0,16.110882]
[1625454099663,3.9248,2251.7,2249.9,16.248466]
[1625454100424,3.9248,2251.7,2251.0,2.20527]
[1625454100425,2.20527,2251.1,2251.0,2.20527]
[1625454100515,3.20527,2251.1,2251.0,2.20527]
[1625454101771,6.84927,2251.1,2251.0,2.20527]
[1625454102371,9.05454,2251.1,2251.0,2.20527]
[1625454103922,9.05454,2251.1,2249.8,27.9555]
[1625454104124,9.05454,2251.1,2249.8,13.7647]
[1625454104423,2.20527,2250.6,2250.5,2.20527]
[1625454104523,3.20527,2250.6,2250.5,2.20527]
[1625454104823,2.20527,2250.6,2250.5,2.20527]
[1625454104928,3.20527,2250.6,2250.5,2.20527]
[1625454105877,2.20527,2250.6,2250.5,2.20527]
[1625454106075,3.20527,2250.6,2250.5,2.20527]
[1625454106477,5.41054,2250.6,2250.5,2.20527]
[1625454106676,4.41054,2250.6,2250.5,2.20527]
[1625454110399,5.41054,2250.6,2250.5,2.20527]
[1625454111688,4.41054,2250.6,2250.5,2.20527]
[1625454113570,1.0,2250.9,2250.5,2.20527]
[1625454113652,18.0607,2252.2,2250.5,2.20527]
[1625454113653,15.2241,2252.2,2250.5,4.82277]
[1625454113766,1.0,2252.1,2250.5,4.82277]
[1625454113952,1.0,2252.1,2250.6,16.219745]
[1625454114054,1.0,2252.1,2250.7,55.2679]
[1625454114253,1.0,2252.1,2250.6,16.219745]
[1625454114355,1.0,2252.1,2250.8,15.987929]
[1625454114452,2.20527,2251.4,2251.3,2.20527]
[1625454114553,3.20527,2251.4,2251.3,2.20527]
[1625454114654,3.20527,2251.4,2251.0,2.20527]
[1625454115055,2.20527,2251.4,2251.0,2.20527]
[1625454115256,2.20527,2251.4,2251.1,16.071902]
[1625454115454,3.20527,2251.4,2251.1,16.071902]
[1625454116457,3.20527,2251.4,2251.0,2.20527]
[1625454116557,5.41054,2251.4,2251.3,2.20527]
[1625454117307,4.41054,2251.4,2251.3,2.20527]
[1625454118421,5.41054,2251.4,2251.3,2.20527]
[1625454119433,5.41054,2251.4,2251.0,2.20527]
[1625454119538,8.95834,2251.4,2251.0,2.20527]
[1625454120534,2.20527,2251.1,2251.0,2.20527]
[1625454120633,3.20527,2251.1,2251.0,2.20527]
[1625454120836,3.20527,2251.1,2250.6,2.20527]
[1625454122537,2.20527,2250.7,2250.6,2.20527]
[1625454122636,6.86757,2250.7,2250.6,2.20527]
[1625454124939,6.86757,2250.7,2249.8,13.7647]
[1625454125544,42.5362,2250.3,2249.8,13.7647]
[1625454125645,4.5959,2250.2,2249.8,13.7647]
[1625454125846,4.5959,2250.2,2248.3,5.6561]
[1625454125949,4.5959,2250.2,2248.3,0.8971]
[1625454126049,4.5959,2250.2,2248.1,2.60371406]
[1625454126158,5.4931,2250.2,2248.1,2.60371406]
[1625454126258,5.0,2250.1,2248.1,2.60371406]
[1625454126357,1.0,2250.0,2248.1,2.60371406]
[1625454126457,1.0,2250.0,2248.2,16.205817]
[1625454126558,2.20527,2249.4,2249.3,2.20527]
[1625454126660,3.20527,2249.4,2249.1,2.20527]
[1625454126758,6.94747,2249.4,2249.1,2.20527]
[1625454127057,6.94747,2249.4,2247.5,2.60451596]
[1625454127377,42.3031,2249.1,2247.4,14.9367]
[1625454127474,1.0,2249.0,2247.4,14.9367]
[1625454127680,1.0,2249.0,2247.6,16.196402]
[1625454127975,1.0,2249.0,2247.4,14.9367]
[1625454128274,1.0,2249.0,2247.5,16.049599]
[1625454128576,2.20527,2248.3,2248.2,2.20527]
[1625454128925,3.20527,2248.3,2248.2,2.20527]
[1625454129930,3.20527,2248.3,2247.4,14.9367]
[1625454130430,43.5738,2247.9,2247.4,14.9367]
[1625454130531,3.488,2247.8,2247.4,14.9367]
[1625454130631,4.41054,2247.5,2247.4,14.9367]
[1625454131231,2.20527,2247.5,2247.4,14.9367]
[1625454131631,2.20527,2247.5,2247.4,31.000746]
[1625454131932,4.4931,2250.2,2247.4,34.662646]
[1625454132033,0.8972,2250.2,2247.4,34.662646]
[1625454132334,2.52908503,2250.4,2247.4,34.662646]
[1625454132439,1.1,2250.8,2247.4,34.662646]
[1625454132538,5.0,2250.5,2247.4,34.662646]
[1625454132643,17.26117,2249.3,2249.1,2.20527]
[1625454132742,17.26117,2249.3,2249.1,5.44077]
[1625454132942,2.20527,2249.3,2249.1,5.44077]
[1625454133844,2.20527,2249.3,2249.2,16.048973]
[1625454135046,2.20527,2249.3,2249.1,5.44077]
[1625454135247,3.20527,2249.3,2249.1,5.44077]
[1625454135346,3.20527,2249.3,2249.1,3.2355]
[1625454135447,3.20527,2249.3,2247.6,5.644]
[1625454136049,3.20527,2249.3,2247.7,16.115322]
[1625454136449,2.20527,2249.3,2247.7,16.115322]
[1625454136651,1.0,2249.6,2249.2,2.20527]
[1625454136750,14.8638,2250.9,2249.2,5.11257]
[1625454137055,14.8638,2250.9,2249.3,16.27472]
[1625454137654,1.0,2250.8,2249.3,16.27472]
[1625454138003,6.0,2250.8,2249.3,16.27472]
[1625454138302,1.0,2250.8,2249.3,16.27472]
[1625454138702,2.20527,2249.9,2249.8,2.20527]
[1625454138803,3.20527,2249.9,2249.8,2.20527]
[1625454138902,3.20527,2249.9,2249.3,16.27472]
[1625454139003,3.20527,2249.9,2249.2,2.20527]
[1625454139606,3.20527,2249.9,2249.3,16.117571]
[1625454139906,2.20527,2249.9,2249.3,16.117571]
[1625454140668,2.20527,2249.9,2249.6,2.20527]
[1625454140761,2.20527,2249.9,2249.6,5.91197]
[1625454141062,2.20527,2249.9,2249.7,16.134362]
[1625454142421,14.8638,2250.9,2249.7,16.134362]
[1625454142722,2.20527,2250.6,2250.5,2.20527]
[1625454143730,3.20527,2250.6,2250.5,2.20527]
[1625454144736,5.41054,2250.6,2250.5,2.20527]
[1625454144837,5.41054,2250.6,2248.7,15.2658]
[1625454144935,7.89084,2250.6,2248.7,15.2658]
[1625454145486,7.89084,2250.6,2248.8,16.013309]
[1625454146741,2.20527,2250.1,2250.0,2.20527]
[1625454146840,3.20527,2250.1,2250.0,2.20527]
[1625454147592,6.47317,2250.1,2250.0,2.20527]
[1625454148493,6.47317,2250.1,2247.9,13.7527]
[1625454148695,2.20527,2249.1,2249.0,2.20527]
[1625454149093,2.20527,2249.1,2249.0,18.312321]
[1625454150698,4.41054,2249.1,2249.0,18.312321]
[1625454151702,1.0,2249.8,2249.0,18.312321]
[1625454152753,2.20527,2249.4,2249.3,2.20527]
[1625454152852,3.20527,2249.4,2249.3,2.20527]
[1625454152952,2.20527,2249.4,2249.3,2.20527]
[1625454153054,3.20527,2249.4,2249.3,2.20527]
[1625454154711,5.41054,2249.4,2249.3,2.20527]
[1625454156529,5.41054,2249.4,2248.6,15.2071]
[1625454156730,2.20527,2249.0,2248.6,17.41237]
[1625454157028,1.0,2248.9,2248.6,17.41237]
[1625454157231,1.0,2248.9,2248.7,16.049505]
[1625454157528,42.1916,2248.8,2248.7,16.049505]
[1625454157632,46.4267,2248.8,2248.7,16.049505]
[1625454157829,46.4267,2248.8,2248.6,2.20527]
[1625454158130,46.4267,2248.8,2246.7,17.06817509]
[1625454158330,46.4267,2248.8,2246.7,14.4649]
[1625454158629,4.2351,2248.8,2246.7,14.4649]
[1625454158729,4.2351,2248.8,2246.8,16.146123]
[1625454158829,2.20527,2247.9,2247.8,2.20527]
[1625454159231,2.20527,2247.9,2247.8,56.00047]
[1625454159530,2.20527,2247.9,2247.8,72.042486]
[1625454159883,1.0,2248.8,2247.8,72.042486]
[1625454159981,1.0,2248.8,2247.8,75.003886]
[1625454160130,1.0,2248.8,2247.8,21.208686]
[1625454160781,2.20527,2248.3,2248.2,2.20527]
[1625454161534,2.20527,2248.3,2248.2,18.229777]
[1625454162957,1.0,2249.1,2248.2,18.229777]
[1625454163057,13.9158,2249.2,2248.2,18.229777]
[1625454163258,0.8982,2250.3,2248.2,18.229777]
[1625454163360,0.8766,2250.9,2248.2,18.229777]
[1625454163459,5.0,2251.0,2248.2,18.229777]
[1625454164160,1.0,2250.9,2248.2,18.229777]
[1625454164558,1.8877,2250.9,2248.2,18.229777]
[1625454164859,2.20527,2249.1,2249.0,4.67967]
[1625454165162,2.20527,2249.1,2249.0,20.80322]
[1625454166463,2.20527,2249.1,2249.0,62.06012]
[1625454166563,3.20527,2249.1,2249.0,62.06012]
[1625454166764,3.20527,2249.1,2249.0,45.93657]
[1625454166864,5.41054,2249.1,2249.0,45.93657]
[1625454167765,5.41054,2249.1,2249.0,4.67967]
[1625454167867,5.41054,2249.1,2249.0,2.20527]
[1625454169765,5.41054,2249.1,2248.8,2.20527]
[1625454169866,8.34514,2249.1,2248.8,2.20527]
[1625454170269,8.34514,2249.1,2247.9,14.7219]
[1625454170877,4.41054,2248.0,2247.9,14.7219]
[1625454171184,4.41054,2248.0,2247.9,30.999014]
[1625454173591,5.41054,2248.0,2247.9,16.277114]
[1625454173693,5.41054,2248.0,2246.7,4.759]
[1625454173991,5.41054,2248.0,2246.3,0.8862]
[1625454174342,5.41054,2248.0,2246.4,16.233932]
[1625454174892,2.20527,2247.1,2247.0,2.20527]
[1625454175194,2.20527,2247.1,2247.0,18.222969]
[1625454175295,2.20527,2247.1,2247.0,70.889769]
[1625454176648,5.0,2249.0,2247.0,70.889769]
[1625454176747,5.0,2249.0,2247.0,73.903569]
[1625454176848,2.20527,2247.6,2247.5,2.20527]
[1625454177249,2.20527,2247.6,2247.5,18.416315]
[1625454179853,2.20527,2247.6,2247.5,2.20527]
[1625454180305,3.20527,2247.6,2247.5,2.20527]
[1625454180706,3.20527,2247.6,2247.0,2.20527]
[1625454180905,4.41054,2247.1,2247.0,2.20527]
[1625454181006,5.41054,2247.1,2247.0,2.20527]
[1625454181305,5.41054,2247.1,2247.0,18.452428]
[1625454182806,4.41054,2247.1,2247.0,18.452428]
[1625454183961,5.41054,2247.1,2247.0,18.452428]
[1625454184062,5.41054,2247.1,2247.0,2.20527]
[1625454184365,5.41054,2247.1,2246.8,2.20527]